Cogmind - Beta 10.2 @@@ ROGUE MODE // 2020.11.02 @ 00:23:40 // Halloween2020/ForbiddenLore Player: GOR Result: Destroyed by G-34 Mercenary with Small Laser Performance ------------- Evolutions (0) 0 Regions Visited (1) 200 Robots Destroyed (17) 85 Value Destroyed (404) 404 Prototype IDs (0) 0 Alien Tech Used (0) 0 Bonus (0) 0 TOTAL SCORE: 689 Bonus ------- None Cogmind --------- Core Integrity 0/250 Matter 300/300 Energy 121/125 System Corruption 0% Temperature Cool (8) Movement Treading (160) Location -10/Materials Parts ------- > --- POWER (1) -------- Light Ion Engine > --- PROPULSION (2) --- Light Treads Light Treads > --- UTILITY (2) ------ Large Storage Unit Large Storage Unit > --- WEAPON (2) ------- (None) > --- INVENTORY (16) --- Light Ion Engine Aluminum Leg Improved Heat Sink Medium Storage Unit Light Armor Plating Hacking Suite Hacking Suite Datajack Peak State ------------ > --- POWER ------------ Ion Engine > --- PROPULSION ------- Aluminum Leg Aluminum Leg > --- UTILITY ---------- Small Storage Unit Small Storage Unit > --- WEAPON ----------- Particle Gun Assault Rifle > --- INVENTORY -------- Light Ion Engine Light Nuclear Core Light Treads Light Treads Aluminum Leg Improved Heat Sink [Rating: 9] Favorites ----------- Power Light Ion Engine Engine Light Ion Engine Propulsion Aluminum Leg Treads Light Treads Leg Aluminum Leg Utility Small Storage Unit Storage Small Storage Unit Weapon Assault Rifle Energy Gun Medium Laser Ballistic Gun Assault Rifle Special Weapon Mining Laser Build | -11 -10 ------- Run | Scr Mat Slots Evolved . | . . Power . | . . Propulsion . | . . Utility . | . . Weapon . | . . Parts Attached 14 | 1 13 Power 2 | . 2 Engine 2 | . 2 Core . | . . Reactor . | . . Propulsion 4 | . 4 Treads 2 | . 2 Leg 2 | . 2 Wheel . | . . Hover . | . . Flight . | . . Utility 4 | 1 3 Device . | . . Storage 4 | 1 3 Processor . | . . Hackware . | . . Protection . | . . Artifact . | . . Weapon 4 | . 4 Energy Gun 3 | . 3 Energy Cannon . | . . Ballistic Gun . | . . Ballistic Cannon . | . . Launcher . | . . Special Weapon 1 | . 1 Impact Weapon . | . . Slashing Weapon . | . . Piercing Weapon . | . . Special Melee Weapon . | . . Unidentified Prototypes . | . . Parts Lost 8 | . 8 Power . | . . Propulsion 3 | . 3 Utility . | . . Weapon 5 | . 5 Highest Loss Streak 3 | . 3 Average Slot Usage (%) 81 | . 81 Engine 14 | . 14 Treads 2 | . 2 Leg 24 | . 24 Storage 28 | . 28 Energy Gun 4 | . 4 Ballistic Gun 5 | . 5 Special Weapon 1 | . 1 Naked Turns . | . . Heaviest Build 36 | 17 36 Greatest Support 40 | 20 40 Greatest Overweight (x) 3 | . 3 Average Overweight (x) . | . . Largest Inventory Capacity 16 | 8 16 Average Capacity 11 | 6 11 Most Carried 8 | 6 8 Average Carried 6 | 5 6 Final Capacity 16 | 8 16 Final Carried 8 | 6 8 Class Distribution -------------------- 93% | Mutant 6% | Scavenger-Mutant Dominant Class ---------------- Mutant | -10/Materials Resources | -11 -10 ----------- Run | Scr Mat Matter Collected 440 | 222 218 Remotely . | . . Salvage Created 591 | 94 497 Parts 41 | 4 37 Haulers Intercepted . | . . Recyclers Shooed . | . . Parts Field Recycled . | . . Retrieved Matter . | . . Parts Self-Destructed . | . . Prevented . | . . Kills | -11 -10 ------- Run | Scr Mat Combat Hostiles Destroyed 8 | . 8 Guns 6 | . 6 Cannons 1 | . 1 AOE 1 | . 1 Classes Destroyed 6 | 2 4 Builder 2 | . 2 Tunneler 1 | 1 . Recycler 2 | 1 1 Operator 2 | . 2 Watcher 2 | . 2 Grunt 8 | . 8 Best Kill Streak 3 | 1 3 Combat Bots Only 2 | . 2 Max Kills in Single Turn 2 | 1 2 Gunslinging . | . . Exploded 1 | . 1 Melee . | . . Uniques/NPCs Destroyed . | . . Combat | -11 -10 -------- Run | Scr Mat Damage Taken 1118 | . 1118 Core 250 | . 250 Absorbed by Shields . | . . Core Remaining (%) 100 | 100 . Volleys Fired 54 | 4 50 Largest 2 | 2 2 Hottest 100 | 70 100 Shots Fired 88 | 8 80 Gun 83 | 8 75 Cannon . | . . Launcher . | . . Special 5 | . 5 Kinetic 49 | 4 45 Thermal 33 | 4 29 Explosive . | . . Electromagnetic 6 | . 6 Robot Hit Streak 13 | 5 13 Robot Miss Streak 3 | 1 3 Penetration Max . | . . Secondary Targets . | . . Shots Hit Robots 58 | 5 53 Core Hits 32 | 3 29 Critical Hits . | . . Critical Kills . | . . Critical Parts Destroyed . | . . Melee Attacks . | . . Impact . | . . Slashing . | . . Piercing . | . . Sneak Attacks . | . . Combat Hostiles . | . . Follow-up Attacks . | . . Damage Inflicted 1005 | 76 929 Guns 838 | 76 762 Cannons . | . . Explosions 80 | . 80 Melee . | . . Ramming 39 | . 39 Kinetic 451 | 27 424 Thermal 435 | 49 386 Explosive . | . . Electromagnetic 80 | . 80 Impact . | . . Slashing . | . . Piercing . | . . Highest Corruption . | . . Average Corruption . | . . Corruption Purged . | . . Overload Shots . | . . Overflow Damage 10 | . 10 Projectiles . | . . Explosions 10 | . 10 Melee . | . . Knockbacks . | . . Impact . | . . Kinetic . | . . Secondary . | . . Self-Inflicted Damage 48 | . 48 Shots 1 | . 1 Rammed 9 | . 9 Targets Rammed 10 | . 10 Kicked 1 | . 1 Crushed . | . . Highest Temperature 210 | 27 210 Average Temperature 57 | 12 61 Received Heat Transfer 591 | . 591 Siege Activations . | . . Robots Corrupted . | . . Combat Hostiles . | . . Parts Fried . | . . Impact Corruptions . | . . Robots Melted . | . . Combat Hostiles . | . . Parts Melted 2 | . 2 Heat Transferred 1064 | 148 916 Parts Sabotaged . | . . Parts Stolen . | . . Parts Stripped . | . . Power Chain Reactions 1 | . 1 Missiles Intercepted . | . . Alert | -11 -10 ------- Run | Scr Mat Peak Influence 113 | 10 113 Initial 6 | . 6 Average 29 | 3 31 Maximum Alert Level . | . . Low Security (%) 100 | 100 100 Level 1 . | . . Level 2 . | . . Level 3 . | . . Level 4 . | . . Level 5 . | . . High Security . | . . Max Security . | . . Squads Dispatched 3 | . 3 Investigation . | . . Extermination . | . . Reinforcement 3 | . 3 Assault . | . . Garrison . | . . Intercept . | . . Construction Impeded . | . . Haulers Reinforced . | . . Stealth | -11 -10 --------- Run | Scr Mat Distress Signals 1 | . 1 Communications Jammed . | . . Distress Signals . | . . Times Spotted 18 | . 18 Peak Tracking Total 3 | . 3 Tactical Retreats 2 | . 2 Traps | -11 -10 ------- Run | Scr Mat Traps Triggered 1 | . 1 Indirectly . | . . Trap Hack Attempts . | . . Triggered . | . . Disarmed . | . . Reprogrammed . | . . Reused . | . . Traps Extracted . | . . Installed . | . . Triggered . | . . Machines | -11 -10 ---------- Run | Scr Mat Machines Disabled . | . . Max in Single Turn . | . . Machines Sabotaged . | . . Garrisons Compromised . | . . Overloaded Fab Kills . | . . Fab Network Shutdowns . | . . Hacking | -11 -10 --------- Run | Scr Mat Machines Accessed 5 | . 5 Terminals 5 | . 5 Fabricators . | . . Repair Stations . | . . Recycling Units . | . . Scanalyzers . | . . Garrison Access . | . . Total Hacks 14 | . 14 Successful 10 | . 10 Failed 4 | . 4 Catastrophic 2 | . 2 Database Lockouts . | . . Manual 13 | . 13 Terminals 14 | . 14 Fabricators . | . . Repair Stations . | . . Recycling Units . | . . Scanalyzers . | . . Garrison Access . | . . Terminal Hacks 5 | . 5 Alert Level 1 | . 1 Unreport Threat 4 | . 4 Fabricator Hacks . | . . Repair Station Hacks . | . . Recycling Unit Hacks . | . . Scanalyzer . | . . Garrison Access Hacks . | . . Unauthorized Hacks 5 | . 5 Terminals 5 | . 5 Track 2 | . 2 Botnet 3 | . 3 Fabricators . | . . Repair Stations . | . . Recycling Units . | . . Scanalyzers . | . . Garrison Access . | . . Data Cores Recovered . | . . Used . | . . Hacking Detections 5 | . 5 Full Trace Events . | . . Feedback Events . | . . Feedback Blocked . | . . Robot Schematics Acquired . | . . Robots Built . | . . Matter . | . . Time . | . . Total Robot Build Rating . | . . Part Schematics Acquired . | . . Parts Built . | . . Matter . | . . Time . | . . Total Part Build Rating . | . . Parts Repaired . | . . Time . | . . Parts Recycled . | . . Recycled Matter . | . . Retrieved Matter . | . . Retrieved Components . | . . Parts Scanalyzed . | . . Part Schematics Acquired . | . . Parts Damaged . | . . Bothacking | -11 -10 ------------ Run | Scr Mat Used RIF Installer . | . . Robots Hacked . | . . Non-combat . | . . Combat . | . . Robot Hacks Applied . | . . Relay Couplers Released . | . . Robots Rewired . | . . Allies Hacked . | . . Hacks Repelled . | . . Allies | -11 -10 -------- Run | Scr Mat Total Allies . | . . Largest Group . | . . Highest-Rated Group . | . . Highest-Rated Ally . | . . Total Orders . | . . Ally Attacks . | . . Total Damage . | . . Kills . | . . Allies Corrupted . | . . Allies Melted . | . . Intel | -11 -10 ------- Run | Scr Mat Robot Analysis Total . | . . Derelict Logs Recovered . | . . Drone Launches . | . . Drone Recoveries . | . . Exploration | -11 -10 ------------- Run | Scr Mat Turns Passed 934 | 59 875 Spaces Moved 519 | 36 483 Core . | . . Treads 31 | . 31 Legs 488 | 36 452 Wheels . | . . Hover . | . . Flight . | . . Fastest Speed 120 | 120 120 Average Speed 133 | 120 134 Slowest Speed 210 | 120 210 Overloaded Moves . | . . Propulsion Burnouts . | . . Robots Hopped . | . . Cave-ins Triggered . | . . Exploration Rate (%) 29 | 3 55 Regions Visited 1 Branch Regions . Pre-discovered Areas . | . . Known Exits Taken . | . . Unknown Exits Taken 1 | 1 . Scrap Searched . | . . Spaces Dug . | . . Terrain Destroyed 12 | . 12 Melee . | . . Projectile 3 | . 3 AOE 9 | . 9 Terrain Rammed . | . . Walls Destroyed . | . . Machines Disabled . | . . Actions | -11 -10 --------- Run | Scr Mat Total 656 | 44 612 Wait 41 | 2 39 Move 518 | 35 483 Hop . | . . Pick Up 11 | 1 10 Fast Attach 4 | 1 3 Attach 5 | . 5 Detach . | . . Swap 5 | . 5 Drop 8 | 1 7 Fire 54 | 4 50 Melee . | . . Ram . | . . Kick 3 | . 3 Crush 7 | . 7 Escape Stasis . | . . Rewire . | . . Trap . | . . Miscellaneous . | . . Route ------- -11/Scrapyard -10/Materials (discovered 2 exits: [*Mat] / [*Min]) History --------- Turn | Location | Event 3 | -11/Scrapyard | Discovered new exit (range 3) 60 | -11/Scrapyard | Entered Materials 202 | -10/Materials | Discovered new exit (range 16) 263 | -10/Materials | Lost 3 parts (1n2w) 313 | -10/Materials | Build established: Mutant 387 | -10/Materials | Core integrity fell below 50% 407 | -10/Materials | Core integrity fell below 20% 527 | -10/Materials | Discovered new exit (range 16) 935 | -10/Materials | Destroyed by G-34 Mercenary with Small Laser Last Messages --------------- 00787_ ALERT: Hostiles spotted, dispatching reinforcements to Terminal M005. 00816_ Acquired Mining Laser. 00832_ Aluminum Leg destroyed. 00845_ G-47 Trooper destroyed. 00849_ Acquired 33 matter. 00853_ O-16 Technician destroyed. 00863_ Acquired Hacking Suite. 00866_ Acquired Lgt. Ion Engine. 00867_ U-05 Engineer builds a Wall. 00867_ Dropped Lgt. Nuclear Core. 00869_ Acquired Datajack. 00884_ U-05 Engineer builds a Wall. 00885_ Acquired 3 matter. 00887_ K-01 Serf collects debris. 00887_ Slammed into K-01 Serf. 00895_ Mining Laser destroyed. 00898_ Slammed into G-34 Mercenary. 00911_ Slammed into U-05 Engineer. 00915_ U-05 Engineer destroyed. Map ----- +----------------------------------------------------+ | ????????????????????"" ?? ????? | | ????????????????? """" !| ????? | | ????????????????? """" || """ ???? | | ?????????????????? """ ???? | | ?????????????# ??? """ ????? | | ????????????? """" !!! [[ ""????? | | ????????????# """" !! [] Y"????# | | ????????????# """" !! [] "" ??## | | ????????????# ##! | | ????????????? = ##! | | ?????????????????# %= #######+##???????# | | ?????????????????# #????????????????#! | | ?????????????????# % #????????????????## | | ?????????????????# % = #?????????????????# | | ?????????????????# t ######?????????????????? | | ?????????????????# ## ####???????????????????? | | ?????????????? ?# """#?????????????????### | | ??????????? ???# "#?????????????????#! | | ???????????? ????# |"#?????????????????# | | ?????????????????????# %< ""#?????????????????# | | ?????????????????????# k |"#?????????????????# " | | ?????????????????????# "#??????############ T | | ?????????????????????# t"""#??????# ## " | | ?????????????????????##k ########### ## | | ??????????????????????# ##### # #### | | ???????????????#####??# @ % # #?## | | ???????????????# ! ?# T +%|| """ #?# | | ???????????????# ?# #=|| R" #?# | | ???????????????# #% ##### # """ #?# | | ???????????????# """ # g########### #?# | | ???????????????# """ + + #??###########?# | | ???????????????# """ # # """ #??????????????# | | ???????????????######## # """ #??????????????# | | ?????????????????# ### # """ #???############ | | ?????# ##########% # #???# + | | ?????# + %% % # #???# ########### | | ?????# ########## #####/##???# #?# + | | ???????############ ### #???#%#????# #?# """ ## | | ???????# ####?# #???#%#????# #?# """ #? | | ???????# ###### #???#%##???# ### """ #? | | ???????# ! """ # #####/###### + #? | | ???????# """ + ## *%= # # #? | | ???????# "" """ # ## ! * # ###+##### | | ???????# "T #+#+####### """ " | | ???????# "" # ## """ + | | ???????# # """ ## "" """ # | | ???????########### """ ## "T """ # ######### | | ?????????????????# """ ## "" """ # #???????? | | ?????????????????# ## # #???????? | | ?????????????????# """ ############ ######### | +----------------------------------------------------+ Best States ------------- Heat Dissipation 25 Energy Generation 10 Energy Capacity 250 Matter Stores 300 Matter Capacity 300 Sight Range 16 Terrain Scan Density 10 Evasion (%) 40 Recoil Reduction 2 Item Schematics ----------------- None Robot Schematics ------------------ None Fabricated ------------ Nothing Alien Tech Used ----------------- None Achievements -------------- None Challenges ------------ None Game ------ Seed ArmorTargetingNukerbomber Manual? 0 Play Time 00:18:16 Cumulative 141.3 hours Start 2020.11.01 @ 23:52:56 End 2020.11.02 @ 00:23:40 Sessions 1 Manual Loads 0 Difficulty Rogue Special Mode Halloween2020/ForbiddenLore Game No. 97 Rogue 97 Adventurer 0 Explorer 0 Win Type - Total 8 Types 6/0/0/2/0/0/0/0/0 Lore% 48 Gallery% 70 Achievement% 60 Wizard Run 0 Options --------- ASCII 0 Keyboard 0 Movement Mouse Keybinds 1 Fullscreen 2 Font 24/Terminus Map View 76x50 Tactical HUD 1 Map Filters NONE Filters NONE Steam 1 RUN: 563acb16-aaba-45cd-a273-24ecf3293404